bitfinex/quotes_ETHUSD_20251125
["timestamp","ask_amount","ask_price","bid_price","bid_amount"]
[1764093046349,0.31694097,2948.3,2947.5,0.4656]
[1764093046549,0.388,2948.5,2947.5,0.4656]
[1764093046753,0.31706174,2948.4,2947.5,0.4656]
[1764093047048,0.31706174,2948.3,2947.5,0.4656]
[1764093047350,0.31706174,2948.2,2947.6,6.78518116]
[1764093047555,0.605,2948.5,2947.6,6.78518116]
[1764093047716,0.3172168,2948.4,2947.6,10.64337174]
[1764093047917,0.3172168,2948.3,2947.6,10.64337174]
[1764093048117,0.3172168,2948.2,2947.6,10.64337174]
[1764093048345,0.388,2948.5,2947.6,10.64337174]
[1764093048652,0.31739014,2948.4,2947.7,0.6826]
[1764093048827,0.002,2948.7,2947.8,0.4656]
[1764093049029,0.31738387,2948.6,2947.8,0.4656]
[1764093049230,0.31738387,2948.5,2947.9,6.78449064]
[1764093049552,0.39,2948.7,2947.9,6.78449064]
[1764093049553,0.31738387,2948.4,2947.9,6.78449064]
[1764093049748,0.39,2948.7,2947.9,6.78449064]
[1764093049952,0.31749981,2948.6,2947.9,10.17673596]
[1764093050142,0.31749981,2948.5,2947.9,10.17673596]
[1764093050457,0.31749981,2948.4,2947.9,10.66613596]
[1764093050752,0.31749981,2948.3,2947.9,10.66613596]
[1764093050923,0.39,2948.7,2947.9,10.66613596]
[1764093051251,0.31766098,2948.6,2947.9,10.66613596]
[1764093051558,0.31766098,2948.5,2947.9,10.66613596]
[1764093051717,0.31766098,2948.4,2947.9,10.17673596]
[1764093051920,0.002,2948.7,2948.0,0.4894]
[1764093052148,0.31771411,2948.6,2948.0,0.4894]
[1764093052350,0.31771411,2948.5,2948.0,0.4894]
[1764093052654,0.002,2948.7,2948.0,0.4894]
[1764093052953,0.31776213,2948.6,2948.0,0.4894]
[1764093053172,0.002,2948.7,2948.0,0.4894]
[1764093053379,0.317746,2948.6,2948.1,6.78403038]
[1764093053540,0.002,2948.7,2948.6,0.493]
[1764093054146,0.002,2948.7,2948.4,0.4894]
[1764093054975,0.002,2948.7,2948.1,10.88244557]
[1764093055557,0.002,2948.7,2948.2,0.4894]
[1764093056981,0.002,2948.7,2948.6,0.493]
[1764093057150,0.002,2948.7,2948.2,0.4894]
[1764093057350,0.002,2948.7,2948.6,0.493]
[1764093058042,0.002,2948.7,2948.6,0.9824]
[1764093059045,0.002,2948.7,2948.6,0.493]
[1764093059378,0.002,2948.7,2948.6,3.88444]
[1764093059977,0.28615535,2949.0,2948.6,7.27588]
[1764093061197,0.002,2949.1,2948.9,0.4763]
[1764093061489,0.002,2949.1,2949.0,3.86727999]
[1764093061675,0.1604,2949.0,2948.9,3.39103909]
[1764093062012,0.002,2949.1,2948.9,6.78213407]
[1764093062207,0.002,2949.1,2949.0,0.4763]
[1764093062511,0.002,2949.1,2949.0,0.9577]
[1764093062669,0.002,2949.1,2949.0,0.4763]
[1764093062869,0.002,2949.1,2949.0,0.9577]
[1764093063210,0.1624,2949.1,2948.9,6.78213407]
[1764093063361,0.002,2949.1,2948.7,6.78264998]
[1764093063560,0.002,2949.1,2948.7,7.26404998]
[1764093063803,0.002,2949.1,2949.0,0.4763]
[1764093063971,0.002,2949.1,2949.0,0.9577]
[1764093065395,3.94130391,2949.1,2947.9,3.87358955]
[1764093065582,0.0016,2948.8,2948.0,6.7842605]
[1764093065786,0.217,2949.0,2948.1,0.72559411]
[1764093066097,0.002,2949.1,2948.1,1.20699411]
[1764093066286,0.002,2949.1,2948.2,0.6984]
[1764093066680,0.002,2949.1,2948.3,0.4814]
[1764093067199,0.002,2949.1,2949.0,0.4763]
[1764093067397,0.002,2949.1,2948.3,0.4814]
[1764093067398,0.002,2949.1,2948.4,10.17501015]
[1764093067569,0.002,2949.1,2948.4,13.5666802]
[1764093067769,0.002,2949.1,2949.0,0.4763]
[1764093068374,0.002,2949.1,2949.0,0.9577]
[1764093068572,0.002,2949.1,2949.0,0.4763]
[1764093068869,0.002,2949.1,2949.0,0.9577]
[1764093069406,0.002,2949.1,2949.0,4.34867999]
[1764093070801,0.002,2949.1,2949.0,3.86727999]
[1764093071002,0.39,2949.1,2949.0,3.39097999]
[1764093071577,0.39,2949.1,2948.7,6.78264998]
[1764093071795,0.002,2949.1,2948.7,6.78264998]
[1764093072003,0.002,2949.1,2948.7,7.26404998]
[1764093072200,0.002,2949.1,2948.8,0.4814]
[1764093072504,0.002,2949.1,2948.7,6.78264998]
[1764093073674,0.336,2948.8,2948.2,3.39182552]
[1764093073895,0.336,2948.8,2948.1,6.78403038]
[1764093073896,0.0018,2948.7,2948.1,6.78403038]
[1764093074096,0.1756,2948.8,2948.2,0.6984]
[1764093074377,0.1756,2948.8,2948.1,6.78403038]
[1764093074596,0.5636,2948.8,2948.1,10.17604557]
[1764093074917,0.1756,2948.8,2948.1,10.65744557]
[1764093077944,0.39,2949.1,2948.1,10.65744557]
[1764093077945,0.002,2949.1,2948.9,1.13109811]
[1764093078240,0.002,2949.1,2949.0,0.6933]
[1764093078420,0.002,2949.1,2949.0,0.4763]
[1764093078991,0.002,2949.1,2949.0,0.9577]
[1764093080127,0.002,2949.1,2949.0,4.34867999]
[1764093081327,0.002,2949.1,2948.9,6.78213136]
[1764093081328,0.1624,2949.1,2948.9,6.78213136]
[1764093081526,0.0016,2949.0,2948.9,3.39103638]
[1764093082020,0.0016,2949.0,2948.6,6.78288]
[1764093082596,0.0016,2949.0,2948.7,0.001]
[1764093084057,0.002,2949.1,2948.7,0.001]
[1764093084364,0.002,2949.1,2948.7,0.4812]
[1764093084536,0.002,2949.1,2949.0,0.493]
[1764093084737,0.002,2949.1,2949.0,0.9732]
[1764093085530,0.002,2949.1,2949.0,1.69879411]
[1764093086136,0.002,2949.1,2949.0,5.0897741]
[1764093086436,0.002,2949.1,2949.0,5.4952781]
[1764093090749,0.002,2949.1,2949.0,5.5952781]
[1764093091472,0.002,2949.1,2949.0,4.6095741]
[1764093091673,0.002,2949.1,2949.0,5.0897741]
[1764093094183,0.002,2949.1,2949.0,4.6095741]
[1764093094588,0.002,2949.1,2949.0,4.1165741]
[1764093094792,0.002,2949.1,2949.0,3.39097999]
[1764093095563,0.002,2949.1,2949.0,3.88397999]
[1764093096711,0.002,2949.1,2949.0,3.39097999]
[1764093098391,0.002,2949.1,2948.9,6.78218169]
[1764093099796,0.002,2949.1,2949.0,0.001]
[1764093100197,0.002,2949.1,2949.0,0.494]
[1764093100490,0.002,2949.1,2949.0,4.36517999]
[1764093101695,0.002,2949.1,2949.0,3.88497999]
[1764093103317,0.002,2949.1,2949.0,4.36517999]
[1764093105749,0.002,2949.1,2949.0,3.88497999]
[1764093106598,0.002,2949.1,2949.0,4.36517999]
[1764093107589,0.002,2949.1,2949.0,5.0907741]
[1764093109914,0.002,2949.1,2949.0,4.6105741]
[1764093111602,0.002,2949.1,2949.0,5.0877741]
[1764093111805,0.002,2949.1,2949.0,4.8275741]
[1764093113648,0.002,2949.1,2949.0,4.3345741]
[1764093113836,0.002,2949.1,2949.0,4.8158741]
[1764093117056,0.002,2949.1,2949.0,4.3345741]
[1764093117543,0.002,2949.1,2949.0,4.1175741]
[1764093117544,0.1646,2949.1,2949.0,4.1175741]
[1764093118054,0.002,2949.1,2949.0,4.1175741]
[1764093119349,0.002,2949.1,2949.0,4.5690741]
[1764093119748,0.002,2949.1,2949.0,4.1175741]
[1764093120270,0.5481,2949.1,2949.0,0.001]
[1764093120417,0.5481,2949.1,2949.0,3.39197999]
[1764093120971,0.5481,2949.1,2949.0,0.001]
[1764093121142,0.1624,2949.1,2949.0,0.001]
[1764093121343,0.5481,2949.1,2949.0,0.001]
[1764093122289,0.002,2949.1,2949.0,0.4525]
[1764093122645,0.002,2949.1,2949.0,0.9063]
[1764093122961,0.002,2949.1,2949.0,3.84347999]
[1764093123166,0.002,2949.1,2949.0,4.29727999]
[1764093124241,1e-08,2949.3,2949.2,0.6427]
[1764093124462,1e-08,2949.3,2949.2,2.54459811]
[1764093124639,1e-08,2949.3,2949.2,1.819004]
[1764093125272,1e-08,2949.3,2949.2,4.97334814]
[1764093125475,1e-08,2949.3,2949.2,5.64414814]
[1764093126280,1e-08,2949.3,2949.2,10.47411643]
[1764093126775,0.002,2950.0,2949.3,1.58259811]
[1764093126954,0.002,2950.0,2949.6,6.4125664]
[1764093127157,0.002,2950.0,2949.6,10.3736566]
[1764093127378,0.002,2950.0,2949.6,5.02118431]
[1764093127543,0.002,2950.0,2949.6,4.33288431]
[1764093127739,0.002,2950.0,2949.6,4.56738431]
[1764093127976,0.002,2950.0,2949.6,5.02118431]
[1764093128758,0.002,2950.0,2949.6,4.11588431]
[1764093128759,0.1081,2949.9,2949.6,4.11588431]
[1764093129083,0.1624,2949.7,2949.6,4.11588431]
[1764093129251,0.002,2949.7,2949.6,4.33288431]
[1764093129772,0.39,2949.7,2949.6,4.33288431]
[1764093129961,0.002,2949.7,2949.6,4.33288431]
[1764093130156,0.002,2949.7,2949.6,3.6072902]
[1764093130356,0.002,2949.7,2949.6,3.3902902]
[1764093130357,0.3877,2949.7,2949.6,3.3902902]
[1764093130686,0.5503,2949.7,2949.6,3.3902902]
[1764093131167,0.5503,2949.7,2949.3,3.39063016]
[1764093131168,0.5503,2949.7,2949.3,10.17190028]
[1764093131345,0.3877,2949.7,2949.3,10.62570028]
[1764093131550,0.3877,2949.7,2949.6,0.4515]
[1764093131551,0.002,2949.7,2949.6,0.4515]
[1764093132283,0.002,2949.7,2949.4,0.4538]
[1764093132885,0.002,2949.7,2949.6,0.4515]
[1764093133380,0.002,2949.7,2949.6,4.2955902]
[1764093134056,0.002,2949.7,2949.6,5.02118431]
[1764093134885,0.002,2949.7,2949.6,4.33288431]
[1764093135053,0.1624,2949.7,2949.6,4.11588431]
[1764093135258,0.002,2949.7,2949.6,4.11588431]
[1764093135457,0.1624,2949.7,2949.6,3.3902902]
[1764093136085,0.1624,2949.7,2949.2,3.39075003]
[1764093136086,0.5481,2949.7,2949.2,3.39075003]
[1764093136309,0.1588,2949.3,2949.2,3.39075003]
[1764093136993,0.002,2949.7,2949.2,6.78150006]
[1764093137164,0.388,2949.3,2949.2,3.39075003]
[1764093137503,0.388,2949.3,2949.1,6.78272458]
[1764093137672,0.0016,2949.2,2949.1,3.39185958]
[1764093139272,0.39,2949.7,2949.1,10.17358958]
[1764093139631,0.1604,2949.2,2949.1,0.001]
[1764093140806,0.91395726,2950.9,2949.2,0.405504]
[1764093141017,3.38677351,2952.7,2950.2,0.6692]
[1764093141018,0.39,2952.1,2950.2,0.6692]
[1764093141162,1.22762233,2952.6,2950.2,0.6692]
[1764093141163,0.5657,2952.0,2950.8,1.20669411]
[1764093141362,0.5657,2952.0,2950.9,6.9944798]
[1764093141686,0.1604,2951.0,2950.9,3.60568317]
[1764093142501,0.5481,2951.0,2950.9,3.38868317]
[1764093142708,0.5481,2951.0,2950.7,3.3889157]
[1764093142859,0.11,2950.8,2950.6,3.38908966]
[1764093143170,0.1545,2950.7,2950.3,3.38938206]
[1764093143403,0.0054,2950.5,2950.3,6.77886787]
[1764093143603,0.1584,2950.4,2950.3,3.38938206]
[1764093144125,0.5461,2950.4,2950.3,3.38938206]
[1764093144436,0.1584,2950.4,2950.3,3.38938206]
[1764093145498,0.1584,2950.4,2950.1,3.3896049]
[1764093145698,0.1584,2950.4,2950.0,6.779661]
[1764093146100,0.3877,2950.7,2950.0,10.1694915]
[1764093146297,0.3877,2950.7,2950.0,10.6314915]
[1764093146497,0.3877,2950.7,2950.0,10.1694915]
[1764093146800,0.3877,2950.7,2950.0,6.779661]
[1764093148397,0.1607,2950.1,2950.0,3.3898305]
[1764093149401,0.5461,2950.1,2950.0,3.3898305]
[1764093149601,0.5461,2950.1,2949.6,3.3902902]
[1764093149796,0.39,2949.7,2949.6,3.3902902]
[1764093149999,0.39,2949.7,2949.5,3.39040208]
[1764093150000,0.39,2949.7,2949.3,3.6066105]
[1764093150198,0.405504,2950.7,2949.3,3.6066105]
[1764093150199,0.39,2950.3,2949.4,11.35915441]
[1764093155422,0.39,2950.3,2949.4,14.74967451]
[1764093155623,0.39,2950.3,2949.5,0.462]
[1764093156341,0.39,2950.3,2949.6,6.7805804]
[1764093157355,0.39,2950.3,2949.6,10.1708706]
[1764093158497,0.002,2950.7,2950.2,0.6692]
[1764093158846,0.002,2950.7,2950.2,1.1312]
[1764093159047,0.002,2950.7,2950.2,0.6692]
[1764093159686,0.1584,2950.3,2949.5,10.63321545]
[1764093159984,0.0039,2950.1,2949.6,0.72559411]
[1764093160277,0.3877,2950.6,2949.6,1.18759411]
[1764093160477,0.3877,2950.6,2949.7,10.17052581]
[1764093161067,0.002,2950.7,2949.8,0.462]
[1764093161267,0.39,2950.6,2949.9,0.216]
[1764093162779,0.39,2950.6,2950.0,6.779661]
[1764093164402,0.392,2950.7,2950.0,10.1694915]
[1764093164604,0.1584,2950.1,2950.0,3.3898305]
[1764093164813,0.392,2950.7,2950.0,6.779661]
[1764093165105,0.392,2950.7,2950.0,10.6505915]
[1764093166193,0.002,2950.7,2950.0,10.6505915]
[1764093166396,0.002,2950.7,2950.1,0.6501]
[1764093166873,0.002,2950.7,2950.2,6.7792014]
[1764093167273,0.392,2950.7,2950.2,6.7792014]
[1764093167803,0.392,2950.7,2950.2,10.1688021]
[1764093167804,0.002,2950.7,2950.2,10.1688021]
[1764093167996,0.002,2950.7,2950.3,0.462]
[1764093168199,0.002,2950.7,2950.2,10.1688021]
[1764093169010,0.002,2950.7,2950.2,10.6308021]
[1764093169186,0.002,2950.7,2950.2,10.1688021]
[1764093169390,0.002,2950.7,2950.3,0.462]
[1764093169582,0.002,2950.7,2950.6,0.4811]
[1764093169783,0.002,2950.7,2950.2,10.1688021]
[1764093170381,0.002,2950.7,2950.3,0.495]
[1764093170805,0.002,2950.7,2950.4,6.77874186]
[1764093171178,0.1584,2950.5,2950.4,3.38937093]
[1764093171486,0.002,2950.7,2950.4,6.77874186]
[1764093172982,0.002,2950.7,2950.2,10.1688021]
[1764093173187,0.002,2950.7,2950.2,6.7792014]
[1764093173718,0.1584,2950.3,2950.2,3.3896007]
[1764093174318,0.1584,2950.3,2949.7,4.61074482]
[1764093174319,0.1584,2950.3,2950.0,6.779661]
[1764093174484,0.6057,2950.7,2950.0,6.779661]
[1764093175011,0.6057,2950.7,2950.2,6.7792014]
[1764093175215,0.002,2950.7,2950.2,10.1688021]
[1764093176415,0.002,2950.7,2950.2,10.6638021]
[1764093176617,0.002,2950.7,2950.3,0.495]
[1764093176920,0.002,2950.7,2950.4,6.77874186]
[1764093178306,0.1584,2950.5,2950.4,3.38937093]
[1764093178935,0.1584,2950.5,2950.1,3.38965562]
[1764093179139,0.0039,2950.4,2950.1,3.38965562]
[1764093180341,0.1568,2950.2,2950.0,6.779661]
[1764093180642,0.1607,2950.1,2950.0,6.779661]
[1764093180843,0.1607,2950.1,2950.0,3.3898305]
[1764093181042,0.1607,2950.1,2949.8,6.78012068]
[1764093181247,0.0039,2950.0,2949.8,6.78012068]
[1764093182543,0.002,2950.7,2949.9,0.4567]
[1764093182544,0.392,2950.7,2949.9,0.4567]
[1764093182720,0.392,2950.7,2949.9,0.91]
[1764093183133,0.392,2950.7,2950.0,6.779661]
[1764093183453,0.31761819,2950.6,2950.0,6.779661]
[1764093183656,0.31761819,2950.6,2948.9,5.15863048]
[1764093183657,10.406,2950.5,2948.9,5.15863048]
[1764093183827,10.8992,2950.5,2949.0,0.1]
[1764093184030,0.4932,2950.4,2949.0,0.1]
[1764093185564,0.4932,2950.4,2949.8,0.001]
[1764093188273,0.002,2950.7,2949.8,0.001]
[1764093188274,0.216,2950.3,2949.8,0.001]
[1764093188552,0.216,2950.4,2949.8,0.001]
[1764093189050,0.216,2950.4,2950.1,6.4626471]
[1764093189450,0.002,2950.7,2950.1,6.4626471]
[1764093189451,0.002,2950.7,2950.2,0.72559411]
[1764093189749,0.002,2950.7,2950.6,10.5773824]
[1764093190325,0.002,2950.7,2950.6,10.6773824]
[1764093190651,0.002,2950.7,2950.6,10.5731212]
[1764093190845,0.002,2950.7,2950.6,10.6731212]
[1764093191019,0.002,2950.7,2950.6,4.2147353]
[1764093193458,0.002,2950.7,2950.6,4.6202393]
[1764093194565,0.002,2951.3,2950.7,1.13109811]
[1764093194860,0.002,2951.3,2951.1,0.1]
[1764093196165,0.002,2951.3,2951.0,0.1]
[1764093196368,0.002,2951.3,2951.2,0.72559411]
[1764093197437,0.9888,2951.3,2951.1,3.38856697]
[1764093197762,0.4936,2951.2,2951.1,3.38856697]
[1764093198061,0.9868,2951.2,2951.1,3.38856697]
[1764093198266,0.9868,2951.2,2950.3,0.72559411]
[1764093198267,0.9868,2951.2,2951.0,3.38864381]
[1764093198426,0.4936,2951.0,2950.2,3.38957587]
[1764093198628,0.4936,2951.0,2950.3,0.72559411]
[1764093198853,0.6925,2950.9,2950.3,0.72559411]
[1764093199234,0.002,2951.3,2950.2,3.38957587]
[1764093199433,0.7112,2951.3,2950.3,0.75948896]
[1764093199751,0.4952,2951.3,2950.3,0.72559411]
[1764093200069,0.002,2951.3,2950.5,0.1]
[1764093200441,0.002,2951.3,2950.7,0.72559411]
[1764093201670,0.4979,2951.3,2950.7,0.72559411]
[1764093202679,0.4979,2951.3,2950.8,10.16673444]
[1764093207320,0.679,2950.9,2950.8,3.38891148]
[1764093207606,0.679,2950.9,2950.4,3.38937093]
[1764093207787,0.4854,2950.5,2950.4,3.38937093]
[1764093209066,0.9813,2950.5,2950.4,3.38937093]
[1764093209574,0.9813,2950.5,2950.2,0.72559411]
[1764093209884,0.4854,2950.5,2950.2,0.72559411]
[1764093210262,0.4096,2950.9,2950.2,0.72559411]
[1764093210462,0.9055,2950.9,2950.2,0.72559411]
[1764093210666,0.9055,2950.9,2950.1,0.72559411]
[1764093210896,0.4854,2950.2,2950.1,0.72559411]
[1764093211096,0.9813,2950.2,2950.1,0.72559411]
[1764093211487,0.9813,2950.2,2950.1,4.11530971]
[1764093211674,0.9813,2950.2,2950.1,3.3897156]
[1764093213664,0.9813,2950.2,2949.9,0.72559411]
[1764093213863,0.4854,2950.1,2949.9,0.72559411]
[1764093215712,0.4854,2950.1,2950.0,3.3898305]
[1764093217573,0.4959,2950.3,2950.0,6.779661]
[1764093218008,3.82,2950.7,2950.0,10.1694915]
[1764093218176,4.5319,2950.7,2950.1,0.72559411]
[1764093218497,4.036,2950.7,2950.1,0.72559411]
[1764093218674,3.82,2950.6,2950.1,0.72559411]
[1764093219307,3.82,2950.6,2950.1,0.82559411]
[1764093219819,0.4854,2950.2,2950.1,0.72559411]
[1764093220024,3.82,2950.6,2950.1,0.72559411]
[1764093220315,3.82,2950.6,2950.3,0.72559411]
[1764093220608,4.3159,2950.6,2950.3,0.72559411]
[1764093220791,3.82,2950.6,2950.3,0.72559411]
[1764093222283,3.82,2950.6,2950.5,0.72559411]
[1764093223415,3.82,2950.7,2950.5,0.72559411]
[1764093223918,0.4854,2950.6,2950.5,0.72559411]
[1764093224104,0.9813,2950.6,2950.5,0.72559411]
[1764093224306,0.9813,2950.6,2950.5,3.38925605]
[1764093224620,1.41204395,2950.6,2950.0,10.1694915]
[1764093224820,0.9813,2950.5,2950.0,10.1694915]
[1764093225114,0.216,2950.4,2950.1,0.72559411]
[1764093225282,0.7119,2950.4,2950.1,0.72559411]
[1764093225485,0.216,2950.4,2950.1,0.72559411]
[1764093226113,0.216,2950.3,2950.1,0.72559411]
[1764093226313,0.216,2950.3,2950.2,3.3896007]
[1764093226721,0.7014,2950.3,2950.2,3.3896007]
[1764093227526,1.1973,2950.3,2950.2,3.3896007]
[1764093227690,0.9813,2950.3,2950.2,3.3896007]
[1764093228298,0.9813,2950.3,2950.0,0.72559411]
[1764093228588,0.4854,2950.0,2949.9,4.11649898]
[1764093228905,0.4854,2950.0,2949.9,3.39090487]
[1764093229089,0.9813,2950.0,2949.9,3.39090487]
[1764093229620,3.6613,2950.0,2949.9,3.39090487]
[1764093229835,3.6613,2950.0,2949.9,0.001]
[1764093230023,5.10971102,2950.0,2949.9,0.001]
[1764093231297,4.79239811,2950.0,2949.9,0.001]
[1764093232224,8.18222861,2950.0,2949.9,0.001]
[1764093232530,4.79239811,2950.0,2949.9,0.001]
[1764093232725,8.39822861,2950.0,2949.9,0.001]
[1764093233427,5.00839811,2950.0,2949.9,0.001]
[1764093233655,8.39822861,2950.0,2949.9,0.001]
[1764093234047,5.00839811,2950.0,2949.9,0.001]
[1764093234248,8.39822861,2950.0,2949.9,0.001]
[1764093235044,4.79239811,2950.0,2949.9,0.001]
[1764093235345,2.674,2949.2,2948.2,9.87353482]
[1764093235549,2.88,2949.1,2948.5,0.1]
[1764093235760,2.88,2949.1,2948.4,0.1]
[1764093236756,2.88,2949.1,2948.6,0.72559411]
[1764093237059,2.88,2949.1,2948.6,0.82559411]
[1764093237225,2.88,2949.1,2948.6,0.72559411]
[1764093237427,2.664,2949.1,2948.6,0.72559411]
[1764093237629,2.88,2949.1,2948.6,0.72559411]
[1764093238659,3.3614,2949.1,2948.6,0.72559411]
[1764093239160,3.3614,2949.1,2948.7,10.17397497]
[1764093239323,2.88,2949.1,2948.7,10.17397497]
[1764093239526,3.1612,2949.1,2948.7,10.17397497]
[1764093239830,0.216,2949.0,2948.7,10.17397497]
[1764093240651,0.4582,2948.8,2948.6,4.1169462]
[1764093240927,2.664,2948.9,2948.6,7.5083862]
[1764093241133,2.664,2948.9,2948.7,0.72559411]
[1764093241773,2.88,2948.9,2948.7,0.72559411]
[1764093242972,2.88,2948.9,2948.8,3.39120998]
[1764093243171,2.88,2948.9,2948.8,4.11680409]
[1764093243362,2.664,2948.9,2948.8,4.11680409]
[1764093245779,2.88,2948.9,2948.8,10.90312022]
[1764093246073,4.0182,2948.9,2948.8,4.11680409]
[1764093246272,4.0182,2948.9,2948.8,3.39120998]
[1764093246639,4.0182,2948.9,2948.8,2.89120998]
[1764093246845,4.0182,2948.9,2947.6,0.5837]
[1764093246846,10.77060404,2948.9,2947.6,0.5837]
[1764093247045,0.9075,2948.8,2947.7,20.32230596]
[1764093247257,0.4972,2948.7,2947.9,6.75240404]
[1764093247454,0.216,2948.6,2948.0,0.0339213]
[1764093247869,3.344,2948.9,2948.1,6.75240404]
[1764093248072,0.216,2948.8,2948.1,6.75240404]
[1764093248378,0.216,2948.7,2948.0,0.4378]
[1764093248783,0.216,2948.6,2948.3,6.75240404]
[1764093248965,0.216,2948.6,2948.4,0.0339167]
[1764093249171,0.216,2948.6,2948.5,3.82935502]
[1764093249492,0.4972,2949.6,2948.5,20.75642412]
[1764093249646,0.4972,2949.4,2948.8,0.4378]
[1764093249846,0.4972,2949.4,2948.9,0.03391094]
[1764093250042,0.4582,2949.0,2948.5,14.00402008]
[1764093250283,0.216,2948.9,2948.5,14.00402008]
[1764093250745,0.4972,2949.2,2948.7,6.75240404]
[1764093250944,0.4972,2949.5,2948.8,1.16339411]
[1764093251149,0.216,2949.4,2948.9,10.17328494]
[1764093251550,0.4582,2949.0,2948.9,3.39109498]
[1764093251850,3.3382,2949.0,2948.9,3.39109498]
[1764093252881,2.664,2949.0,2948.9,3.82889498]
[1764093253186,2.664,2949.0,2948.0,0.72559411]
[1764093253187,3.8354,2949.0,2948.0,0.72559411]
[1764093253482,1.0903,2948.9,2948.0,0.72559411]
[1764093253871,0.4972,2948.8,2948.0,0.72559411]
[1764093254268,2.664,2948.7,2947.8,0.72559411]
[1764093254583,0.7132,2948.6,2947.8,0.72559411]
[1764093255288,0.7132,2948.6,2947.9,13.56898128]
[1764093256066,0.7132,2948.6,2948.5,0.001]
[1764093256474,0.216,2948.6,2948.5,0.001]
[1764093256679,0.6742,2948.6,2948.5,0.001]
[1764093257079,1.1714,2948.6,2948.5,0.001]
[1764093260766,6.01139867,2948.6,2948.5,0.001]
[1764093260980,9.89306966,2948.3,2948.2,0.001]
[1764093261286,0.405504,2948.1,2947.2,3.39302691]
[1764093261495,0.405504,2948.1,2946.5,0.72559411]
[1764093261496,0.405504,2947.9,2946.5,0.72559411]
[1764093261671,0.4822,2947.1,2946.5,0.72559411]
[1764093261866,0.216,2947.0,2946.5,0.72559411]
[1764093262269,0.216,2947.0,2946.4,10.1819169]
[1764093262270,0.1942,2946.9,2946.4,10.1819169]
[1764093262786,0.216,2946.8,2946.5,0.72559411]
[1764093262981,0.216,2946.7,2946.5,0.72559411]
[1764093263383,0.216,2946.7,2946.6,0.4378]
[1764093263712,0.216,2946.7,2946.6,3.39374193]
[1764093265304,0.216,2946.7,2946.6,3.83154193]
[1764093265600,0.6591,2947.2,2946.6,10.61902579]
[1764093265804,0.216,2947.1,2946.6,10.61902579]
[1764093266401,0.6591,2947.2,2946.6,10.61902579]
[1764093266607,0.216,2947.0,2946.6,10.61902579]
[1764093267307,0.216,2947.0,2945.7,0.001]
[1764093267308,0.405504,2946.0,2945.7,0.001]
[1764093267606,5.11846169,2945.8,2945.7,0.001]
[1764093267988,5.71942143,2945.8,2945.7,0.001]
[1764093268498,5.93642143,2945.8,2945.7,0.001]
[1764093269304,1.19365974,2945.8,2945.7,0.001]
[1764093269511,4.66926358,2945.8,2945.7,0.001]
[1764093270604,1.2746,2945.8,2945.7,0.001]
[1764093270783,4.66926358,2945.8,2945.7,0.001]
[1764093271605,1.2746,2945.8,2945.7,0.001]
[1764093271785,1.0576,2945.8,2945.7,0.001]
[1764093272107,0.8097,2945.8,2945.7,0.001]
[1764093272307,1.2746,2945.8,2945.7,0.001]
[1764093273308,0.5927,2945.8,2945.7,0.001]
[1764093273604,0.6992,2945.8,2945.7,0.001]
[1764093274185,0.4822,2945.8,2945.7,0.001]
[1764093274406,1.1641,2945.8,2945.7,0.001]
[1764093274779,0.1942,2946.4,2945.7,0.4398]
[1764093275082,0.217,2946.3,2945.7,0.4398]
[1764093275408,0.4649,2946.8,2946.2,0.4388]
[1764093275608,0.6819,2946.7,2945.7,0.4398]
[1764093275913,0.4649,2946.6,2945.8,6.78932716]
[1764093276498,0.4649,2946.6,2945.7,3.39572018]
[1764093276799,0.5891,2945.8,2945.7,0.001]
[1764093276999,0.217,2945.8,2945.7,3.39577883]
[1764093277198,0.217,2945.8,2945.7,0.4398]
[1764093277418,0.4649,2946.4,2945.7,7.22935766]
[1764093277713,0.217,2946.3,2945.7,7.22935766]
[1764093279338,8.77065919,2947.6,2946.2,0.4388]
[1764093279487,0.4649,2946.8,2946.2,0.4388]
[1764093279683,0.217,2946.7,2946.2,0.4388]
[1764093280221,0.4649,2946.6,2946.2,3.83296045]
[1764093281024,0.4649,2946.6,2946.2,3.39416045]
[1764093281518,0.4649,2946.6,2946.2,6.78836315]
[1764093281725,0.4649,2946.6,2946.2,3.39416045]
[1764093282287,0.4649,2946.6,2946.2,6.78836315]
[1764093282903,0.4649,2946.6,2946.2,3.39416045]
[1764093284536,0.4822,2946.3,2945.8,4.12023101]
[1764093284743,0.6119,2946.2,2945.9,3.39453235]
[1764093285099,0.6119,2946.2,2945.9,6.7890807]
[1764093286127,0.6119,2946.2,2945.7,0.72659411]
[1764093287838,0.6119,2946.2,2945.8,0.4388]
[1764093287839,0.217,2946.2,2945.8,0.4388]
[1764093288237,0.217,2946.2,2945.9,6.7890967]
[1764093290358,0.217,2946.2,2946.1,0.4388]
[1764093290648,0.4954,2947.0,2946.1,0.5847]
[1764093290810,0.4954,2947.0,2946.4,0.4388]
[1764093290811,0.216,2946.9,2946.4,0.4388]
[1764093291208,0.4954,2946.8,2946.4,0.4388]
[1764093291409,0.4954,2946.8,2946.1,0.1459]
[1764093291641,0.4758,2946.2,2945.9,6.7890967]
[1764093291951,0.216,2946.1,2945.9,6.7890967]
[1764093292328,0.216,2946.1,2945.8,6.78932716]
[1764093294062,0.6616,2945.9,2945.7,0.001]
[1764093294234,0.3793,2945.8,2945.7,3.39575967]
[1764093294447,0.3793,2945.8,2945.7,0.001]
[1764093295531,0.8747,2945.8,2945.7,0.001]
[1764093296845,0.3793,2945.8,2945.7,0.001]